fUST/lending_fUST_20250204
["ID","MTS","AMOUNT","RATE_DAILY","PERIOD"]
[351598029,1738653039226,-1685.53,0.00016438,2]
[351598030,1738653039235,-500.0,0.00016438,2]
[351598031,1738653039246,-397.813,0.00016512,2]
[351598032,1738653039256,-499.0,0.00016574,2]
[351598033,1738653039265,-500.0,0.00016575,2]
[351598034,1738653039276,-500.0,0.00016575,2]
[351598035,1738653039286,-500.0,0.00016575,2]
[351598036,1738653039296,-500.0,0.00016575,2]
[351598037,1738653039305,-500.0,0.00016575,2]
[351598038,1738653039315,-711.07,0.00016575,2]
[351598039,1738653039324,-688.91,0.00016575,2]
[351598040,1738653039334,-500.0,0.00016575,2]
[351598041,1738653039344,-500.0,0.00016575,2]
[351598042,1738653039354,-500.0,0.00016575,2]
[351598043,1738653039364,-500.0,0.00016575,2]
[351598044,1738653039373,-1742.02,0.00016575,2]
[351598045,1738653039382,-500.0,0.00016575,2]
[351598046,1738653039392,-585.01,0.00016575,2]
[351598047,1738653039402,-500.0,0.00016575,2]
[351598048,1738653039411,-500.0,0.00016575,2]
[351598049,1738653039421,-500.0,0.00016575,2]
[351598050,1738653039431,-500.0,0.00016575,2]
[351598051,1738653039440,-650.59,0.00016575,2]
[351598052,1738653039450,-500.0,0.00016575,2]
[351598053,1738653039459,-500.0,0.00016575,2]
[351598054,1738653039470,-184.83042232,0.00016575,2]
[351598055,1738653039479,-3472.72,0.00016575,2]
[351598056,1738653039489,-500.0,0.00016575,2]
[351598057,1738653039499,-500.0,0.00016575,2]
[351598058,1738653039512,-2545.92,0.00016575,2]
[351598059,1738653039521,-1100.22,0.00016575,2]
[351598060,1738653039531,-500.0,0.00016575,2]
[351598061,1738653039540,-509.70000003,0.00016575,2]
[351598062,1738653039551,-500.0,0.00016575,2]
[351598063,1738653039561,-622.95692336,0.00016575,2]
[351598064,1738653039571,-696.57,0.00016575,2]
[351598065,1738653039582,-500.0,0.00016575,2]
[351598066,1738653039592,-840.9,0.00016575,2]
[351598068,1738653039602,-1701.05,0.00016575,2]
[351598070,1738653039612,-666.96,0.00016575,2]
[351598072,1738653039622,-237.27147354,0.00016575,2]
[351598074,1738653039631,-500.0,0.00016575,2]
[351598076,1738653039641,-6091.39,0.00016575,2]
[351598077,1738653039650,-2741.31,0.00016575,2]
[351598078,1738653039659,-1024.87,0.00016575,2]
[351598079,1738653039669,-847.7,0.00016575,2]
[351598080,1738653039679,-16099.78,0.00016575,2]
[351598081,1738653039688,-500.0,0.00016575,2]
[351598082,1738653039698,-500.0,0.00016575,2]
[351598083,1738653039708,-559.49,0.00016575,2]
[351598084,1738653039719,-431.55704084,0.00016575,2]
[351598085,1738653039729,-953.65,0.00016575,2]
[351598086,1738653039739,-621.14,0.00016575,2]
[351598087,1738653039750,-500.0,0.00016575,2]
[351598088,1738653039766,-565.43,0.00016575,2]
[351598089,1738653039777,-775.64,0.00016575,2]
[351598090,1738653039787,-384.95199955,0.00016575,2]
[351598091,1738653039798,-500.0,0.00016575,2]
[351598092,1738653039808,-500.0,0.00016575,2]
[351598093,1738653039818,-1135.73,0.00016575,2]
[351598094,1738653039828,-500.0,0.00016575,2]
[351598095,1738653039838,-500.0,0.00016575,2]
[351598096,1738653039848,-1679.45,0.00016575,2]
[351598097,1738653039858,-500.0,0.00016575,2]
[351598098,1738653039868,-500.0,0.00016575,2]
[351598099,1738653039878,-2063.87,0.00016575,2]
[351598100,1738653039888,-1090.8,0.00016575,2]
[351598101,1738653039898,-500.0,0.00016575,2]
[351598102,1738653039907,-1175.84,0.00016575,2]
[351598103,1738653039917,-319.04074556,0.00016575,2]
[351598104,1738653039927,-5316.78,0.00016575,2]
[351598105,1738653039937,-1053.58,0.00016575,2]
[351598106,1738653039947,-500.0,0.00016575,2]
[351598107,1738653039957,-788.04,0.00016575,2]
[351598108,1738653039968,-500.0,0.00016575,2]
[351598109,1738653039978,-500.0,0.00016575,2]
[351598110,1738653039988,-500.0,0.00016575,2]
[351598111,1738653039997,-999.29,0.00016575,2]
[351598112,1738653040011,-500.0,0.00016575,2]
[351598113,1738653040022,-833.12,0.00016575,2]
[351598114,1738653040036,-500.0,0.00016575,2]
[351598115,1738653040046,-500.0,0.00016575,2]
[351598116,1738653040056,-500.0,0.00016575,2]
[351598117,1738653040067,-500.0,0.00016575,2]
[351598118,1738653040077,-500.0,0.00016575,2]
[351598119,1738653040087,-1978.31,0.00016575,2]
[351598120,1738653040097,-1141.9,0.00016575,2]
[351598121,1738653040106,-500.0,0.00016575,2]
[351598122,1738653040116,-370.10003,0.00016575,2]
[351598123,1738653040126,-868.99,0.00016575,2]
[351598124,1738653040136,-5462.88,0.00016575,2]
[351598125,1738653040147,-500.0,0.00016575,2]
[351598126,1738653040157,-500.0,0.00016575,2]
[351598127,1738653040167,-1685.53,0.00016575,2]
[351598128,1738653040177,-500.0,0.00016575,2]
[351598129,1738653040187,-214.25987774,0.00016589,2]
[351598130,1738653040198,-231.214,0.00016592,2]
[351598131,1738653040207,-267.208,0.00016627,2]
[351598132,1738653040218,-153.55854776,0.0001663,2]
[351598133,1738653040227,-151.243,0.0001669,2]
[351598134,1738653040237,-541.988,0.0001669,2]
[351598135,1738653040247,-1974.0,0.0001669,2]
[351598136,1738653040259,-2298.0,0.0001669,2]
[351598137,1738653040269,-151.0,0.00016712,2]
[351598138,1738653040278,-500.0,0.00016712,2]
[351598139,1738653040288,-500.0,0.00016712,2]
[351598140,1738653040297,-500.0,0.00016712,2]
[351598141,1738653040307,-500.0,0.00016712,2]
[351598142,1738653040316,-500.0,0.00016712,2]
[351598143,1738653040326,-711.07,0.00016712,2]
[351598144,1738653040335,-688.91,0.00016712,2]
[351598145,1738653040345,-500.0,0.00016712,2]
[351598146,1738653040355,-151.0,0.00016712,2]
[351598147,1738653040365,-500.0,0.00016712,2]
[351598148,1738653040375,-500.0,0.00016712,2]
[351598149,1738653040385,-500.0,0.00016712,2]
[351598150,1738653040395,-1742.02,0.00016712,2]
[351598151,1738653040405,-500.0,0.00016712,2]
[351598152,1738653040415,-585.01,0.00016712,2]
[351598153,1738653040425,-500.0,0.00016712,2]
[351598154,1738653040435,-500.0,0.00016712,2]
[351598155,1738653040445,-600.39066318,0.00016712,2]
[351598156,1738653040455,-650.59,0.00016712,2]
[351598157,1738653040465,-500.0,0.00016712,2]
[351598158,1738653040475,-500.0,0.00016712,2]
[351598159,1738653040484,-3472.72,0.00016712,2]
[351598160,1738653040494,-500.0,0.00016712,2]
[351598161,1738653040503,-500.0,0.00016712,2]
[351598162,1738653040517,-2545.92,0.00016712,2]
[351598163,1738653040527,-1100.22,0.00016712,2]
[351598164,1738653040537,-500.0,0.00016712,2]
[351598165,1738653040547,-500.0,0.00016712,2]
[351598166,1738653040557,-696.57,0.00016712,2]
[351598167,1738653040566,-500.0,0.00016712,2]
[351598168,1738653040576,-840.9,0.00016712,2]
[351598169,1738653040587,-1701.05,0.00016712,2]
[351598170,1738653040596,-666.96,0.00016712,2]
[351598171,1738653040606,-487.2751254,0.00016712,2]
[351598172,1738653040616,-6091.39,0.00016712,2]
[351598173,1738653040625,-2741.31,0.00016712,2]
[351598174,1738653040634,-1024.87,0.00016712,2]
[351598175,1738653040644,-847.7,0.00016712,2]
[351598176,1738653040653,-16099.78,0.00016712,2]
[351598177,1738653040662,-500.0,0.00016712,2]
[351598178,1738653040672,-500.0,0.00016712,2]
[351598179,1738653040682,-559.49,0.00016712,2]
[351598180,1738653040692,-953.65,0.00016712,2]
[351598181,1738653040701,-621.14,0.00016712,2]
[351598182,1738653040711,-500.0,0.00016712,2]
[351598183,1738653040722,-565.43,0.00016712,2]
[351598184,1738653040731,-775.64,0.00016712,2]
[351598185,1738653040742,-500.0,0.00016712,2]
[351598186,1738653040756,-500.0,0.00016712,2]
[351598187,1738653040765,-1135.73,0.00016712,2]
[351598188,1738653040774,-500.0,0.00016712,2]
[351598189,1738653040784,-500.0,0.00016712,2]
[351598190,1738653040793,-1679.45,0.00016712,2]
[351598191,1738653040803,-500.0,0.00016712,2]
[351598192,1738653040812,-500.0,0.00016712,2]
[351598193,1738653040821,-2063.87,0.00016712,2]
[351598194,1738653040831,-1090.8,0.00016712,2]
[351598195,1738653040840,-507.8949998,0.00016712,2]
[351598196,1738653040849,-1175.84,0.00016712,2]
[351598197,1738653040859,-5316.78,0.00016712,2]
[351598198,1738653040868,-1053.58,0.00016712,2]
[351598199,1738653040878,-500.0,0.00016712,2]
[351598200,1738653040887,-788.04,0.00016712,2]
[351598201,1738653040897,-183.55572643,0.00016712,2]
[351598202,1738653040906,-500.0,0.00016712,2]
[351598203,1738653040916,-500.0,0.00016712,2]
[351598204,1738653040926,-999.29,0.00016712,2]
[351598205,1738653040936,-500.0,0.00016712,2]
[351598206,1738653040946,-833.12,0.00016712,2]
[351598207,1738653040956,-500.0,0.00016712,2]
[351598208,1738653040966,-373.28532646,0.00016712,2]
[351598209,1738653040976,-500.0,0.00016712,2]
[351598210,1738653040986,-500.0,0.00016712,2]
[351598211,1738653040995,-500.0,0.00016712,2]
[351598212,1738653041007,-1978.31,0.00016712,2]
[351598213,1738653041017,-1141.9,0.00016712,2]
[351598214,1738653041027,-500.0,0.00016712,2]
[351598215,1738653041037,-868.99,0.00016712,2]
[351598216,1738653041046,-5462.88,0.00016712,2]
[351598217,1738653041056,-500.0,0.00016712,2]
[351598218,1738653041066,-500.0,0.00016712,2]
[351598219,1738653041076,-1685.53,0.00016712,2]
[351598220,1738653041085,-500.0,0.00016712,2]
[351598221,1738653041095,-153.240663,0.00016849,2]
[351598222,1738653041105,-500.0,0.00016849,2]
[351598223,1738653041114,-500.0,0.00016849,2]
[351598224,1738653041123,-711.07,0.00016849,2]
[351598225,1738653041133,-688.91,0.00016849,2]
[351598226,1738653041143,-500.0,0.00016849,2]
[351598227,1738653041152,-500.0,0.00016849,2]
[351598228,1738653041162,-500.0,0.00016849,2]
[351598229,1738653041171,-500.0,0.00016849,2]
[351598230,1738653041181,-1742.02,0.00016849,2]
[351598231,1738653041191,-500.0,0.00016849,2]
[351598232,1738653041200,-585.01,0.00016849,2]
[351598233,1738653041209,-500.0,0.00016849,2]
[351598234,1738653041219,-500.0,0.00016849,2]
[351598235,1738653041228,-650.59,0.00016849,2]
[351598236,1738653041238,-500.0,0.00016849,2]
[351598237,1738653041247,-500.0,0.00016849,2]
[351598238,1738653041257,-500.0,0.00016849,2]
[351598239,1738653041267,-3472.72,0.00016849,2]
[351598240,1738653041277,-500.0,0.00016849,2]
[351598241,1738653041287,-2545.92,0.00016849,2]
[351598242,1738653041297,-1100.22,0.00016849,2]
[351598243,1738653041307,-500.0,0.00016849,2]
[351598244,1738653041317,-500.0,0.00016849,2]
[351598245,1738653041326,-696.57,0.00016849,2]
[351598246,1738653041336,-500.0,0.00016849,2]
[351598247,1738653041346,-840.9,0.00016849,2]
[351598248,1738653041355,-1701.05,0.00016849,2]
[351598249,1738653041365,-666.96,0.00016849,2]
[351598250,1738653041374,-6091.39,0.00016849,2]
[351598251,1738653041384,-2741.31,0.00016849,2]
[351598252,1738653041393,-1024.87,0.00016849,2]
[351598253,1738653041402,-847.7,0.00016849,2]
[351598254,1738653041412,-16099.78,0.00016849,2]
[351598255,1738653041421,-500.0,0.00016849,2]
[351598256,1738653041430,-500.0,0.00016849,2]
[351598257,1738653041439,-559.49,0.00016849,2]
[351598258,1738653041448,-953.65,0.00016849,2]
[351598259,1738653041457,-621.14,0.00016849,2]
[351598260,1738653041466,-500.0,0.00016849,2]
[351598261,1738653041475,-565.43,0.00016849,2]
[351598262,1738653041484,-775.64,0.00016849,2]
[351598263,1738653041493,-500.0,0.00016849,2]
[351598264,1738653041504,-500.0,0.00016849,2]
[351598265,1738653041516,-1135.73,0.00016849,2]
[351598266,1738653041525,-500.0,0.00016849,2]
[351598267,1738653041534,-500.0,0.00016849,2]
[351598268,1738653041544,-1679.45,0.00016849,2]
[351598269,1738653041555,-500.0,0.00016849,2]
[351598270,1738653041564,-500.0,0.00016849,2]
[351598271,1738653041573,-2063.87,0.00016849,2]
[351598272,1738653041584,-1090.8,0.00016849,2]
[351598273,1738653041594,-1175.84,0.00016849,2]
[351598274,1738653041604,-5316.78,0.00016849,2]
[351598275,1738653041614,-1053.58,0.00016849,2]
[351598276,1738653041623,-500.0,0.00016849,2]
[351598277,1738653041634,-788.04,0.00016849,2]
[351598278,1738653041644,-500.0,0.00016849,2]
[351598279,1738653041653,-500.0,0.00016849,2]
[351598280,1738653041663,-999.29,0.00016849,2]
[351598281,1738653041673,-500.0,0.00016849,2]
[351598282,1738653041683,-833.12,0.00016849,2]
[351598283,1738653041694,-500.0,0.00016849,2]
[351598284,1738653041703,-500.0,0.00016849,2]
[351598285,1738653041812,-500.0,0.00016849,2]
[351598286,1738653041834,-500.0,0.00016849,2]
[351598287,1738653041843,-1978.31,0.00016849,2]
[351598288,1738653041853,-1141.9,0.00016849,2]
[351598289,1738653041863,-500.0,0.00016849,2]
[351598290,1738653041873,-868.99,0.00016849,2]
[351598291,1738653041882,-5462.88,0.00016849,2]
[351598292,1738653041893,-500.0,0.00016849,2]
[351598293,1738653041903,-500.0,0.00016849,2]
[351598294,1738653041912,-1685.53,0.00016849,2]
[351598295,1738653041922,-153.55854776,0.00016849,2]
[351598296,1738653041932,-214.25987774,0.00016851,2]
[351598297,1738653041942,-597.6874352,0.0001689,2]
[351598298,1738653041951,-500.0,0.0001689,2]
[351598299,1738653041962,-2547.95,0.000169,2]
[351598300,1738653041972,-1024.0,0.000169,6]
[351598301,1738653041981,-500.0,0.00016985,2]
[351598302,1738653041991,-500.0,0.00016985,2]
[351598303,1738653042000,-646.2604874,0.00016985,2]
[351598304,1738653042011,-500.0,0.00016985,2]
[351598305,1738653042021,-500.0,0.00016986,2]
[351598306,1738653042031,-500.0,0.00016986,2]
[351598307,1738653042041,-711.07,0.00016986,2]
[351598308,1738653042050,-688.91,0.00016986,2]
[351598309,1738653042060,-500.0,0.00016986,2]
[351598310,1738653042070,-500.0,0.00016986,2]
[351598311,1738653042079,-500.0,0.00016986,2]
[351598312,1738653042089,-500.0,0.00016986,2]
[351598313,1738653042099,-1742.02,0.00016986,2]
[351598314,1738653042108,-585.01,0.00016986,2]
[351598315,1738653042118,-500.0,0.00016986,2]
[351598316,1738653042128,-650.59,0.00016986,2]
[351598317,1738653042137,-500.0,0.00016986,2]
[351598318,1738653042147,-500.0,0.00016986,2]
[351598319,1738653042156,-3472.72,0.00016986,2]
[351598320,1738653042168,-500.0,0.00016986,2]
[351598321,1738653042177,-2545.92,0.00016986,2]
[351598322,1738653042187,-1100.22,0.00016986,2]
[351598323,1738653042196,-565.62213839,0.00016986,2]
[351598324,1738653042206,-500.0,0.00016986,2]
[351598325,1738653042215,-696.57,0.00016986,2]
[351598326,1738653042224,-840.9,0.00016986,2]
[351598327,1738653042234,-1701.05,0.00016986,2]
[351598328,1738653042243,-666.96,0.00016986,2]
[351598329,1738653042253,-6091.39,0.00016986,2]
[351598330,1738653042265,-2741.31,0.00016986,2]
[351598331,1738653042275,-1024.87,0.00016986,2]
[351598332,1738653042286,-847.7,0.00016986,2]
[351598333,1738653042296,-16099.78,0.00016986,2]
[351598334,1738653042306,-500.0,0.00016986,2]
[351598335,1738653042316,-559.49,0.00016986,2]
[351598336,1738653042326,-953.65,0.00016986,2]
[351598337,1738653042335,-621.14,0.00016986,2]
[351598338,1738653042345,-500.0,0.00016986,2]
[351598340,1738653042354,-565.43,0.00016986,2]
[351598342,1738653042364,-775.64,0.00016986,2]
[351598344,1738653042374,-500.0,0.00016986,2]
[351598346,1738653042383,-340.85335333,0.00016986,2]
[351598348,1738653042393,-1135.73,0.00016986,2]
[351598349,1738653042403,-500.0,0.00016986,2]
[351598350,1738653042412,-500.0,0.00016986,2]
[351598351,1738653042421,-1679.45,0.00016986,2]
[351598352,1738653042431,-500.0,0.00016986,2]
[351598353,1738653042441,-2063.87,0.00016986,2]
[351598354,1738653042450,-1090.8,0.00016986,2]
[351598355,1738653042460,-1175.84,0.00016986,2]
[351598356,1738653042469,-5316.78,0.00016986,2]
[351598357,1738653042479,-1053.58,0.00016986,2]
[351598358,1738653042488,-788.04,0.00016986,2]
[351598359,1738653042498,-500.0,0.00016986,2]
[351598360,1738653042513,-500.0,0.00016986,2]
[351598361,1738653042523,-999.29,0.00016986,2]
[351598362,1738653042533,-833.12,0.00016986,2]
[351598363,1738653042543,-500.0,0.00016986,2]
[351598364,1738653042553,-1978.31,0.00016986,2]
[351598365,1738653042563,-1141.9,0.00016986,2]
[351598366,1738653042572,-500.0,0.00016986,2]
[351598367,1738653042582,-868.99,0.00016986,2]
[351598368,1738653042594,-5462.88,0.00016986,2]
[351598369,1738653042603,-500.0,0.00016986,2]
[351598370,1738653042612,-1685.53,0.00016986,2]
[351598371,1738653042621,-151.0,0.00017109,2]
[351598372,1738653042630,-668.153,0.00017109,2]
[351598373,1738653042640,-1200.0,0.00017109,2]
[351598374,1738653042650,-214.25987774,0.00017113,2]
[351598375,1738653042660,-500.0,0.00017123,2]
[351598376,1738653042669,-500.0,0.00017123,2]
[351598377,1738653042679,-711.07,0.00017123,2]
[351598378,1738653042688,-688.91,0.00017123,2]
[351598379,1738653042698,-500.0,0.00017123,2]
[351598380,1738653042708,-500.0,0.00017123,2]
[351598381,1738653042717,-500.0,0.00017123,2]
[351598382,1738653042726,-500.0,0.00017123,2]
[351598383,1738653042735,-1742.02,0.00017123,2]
[351598384,1738653042745,-585.01,0.00017123,2]
[351598385,1738653042754,-500.0,0.00017123,2]
[351598386,1738653042765,-650.59,0.00017123,2]
[351598387,1738653042780,-500.0,0.00017123,2]
[351598388,1738653042790,-3472.72,0.00017123,2]
[351598389,1738653042799,-500.0,0.00017123,2]
[351598390,1738653042808,-2545.92,0.00017123,2]
[351598391,1738653042818,-1100.22,0.00017123,2]
[351598392,1738653042827,-500.0,0.00017123,2]
[351598393,1738653042837,-696.57,0.00017123,2]
[351598394,1738653042846,-840.9,0.00017123,2]
[351598395,1738653042855,-1701.05,0.00017123,2]
[351598396,1738653042865,-666.96,0.00017123,2]
[351598397,1738653042874,-6091.39,0.00017123,2]
[351598398,1738653042884,-2741.31,0.00017123,2]
[351598399,1738653042893,-1024.87,0.00017123,2]
[351598400,1738653042903,-847.7,0.00017123,2]
[351598401,1738653042912,-16099.78,0.00017123,2]
[351598402,1738653042921,-500.0,0.00017123,2]
[351598403,1738653042930,-559.49,0.00017123,2]
[351598404,1738653042939,-953.65,0.00017123,2]
[351598405,1738653042949,-621.14,0.00017123,2]
[351598406,1738653042958,-565.43,0.00017123,2]
[351598407,1738653042967,-775.64,0.00017123,2]
[351598408,1738653042977,-500.0,0.00017123,2]
[351598409,1738653042987,-1135.73,0.00017123,2]
[351598410,1738653042996,-500.0,0.00017123,2]
[351598411,1738653043008,-1679.45,0.00017123,2]
[351598412,1738653043017,-500.0,0.00017123,2]
[351598413,1738653043027,-2063.87,0.00017123,2]
[351598414,1738653043036,-1090.8,0.00017123,2]
[351598415,1738653043045,-1175.84,0.00017123,2]
[351598416,1738653043054,-5316.78,0.00017123,2]
[351598417,1738653043063,-1053.58,0.00017123,2]
[351598418,1738653043072,-788.04,0.00017123,2]
[351598419,1738653043082,-500.0,0.00017123,2]
[351598420,1738653043091,-500.0,0.00017123,2]
[351598421,1738653043101,-999.29,0.00017123,2]
[351598422,1738653043110,-833.12,0.00017123,2]
[351598423,1738653043119,-554.724698,0.00017123,2]
[351598424,1738653043128,-1978.31,0.00017123,2]
[351598425,1738653043138,-1141.9,0.00017123,2]
[351598426,1738653043147,-500.0,0.00017123,2]
[351598427,1738653043157,-868.99,0.00017123,2]
[351598428,1738653043166,-5462.88,0.00017123,2]
[351598429,1738653043176,-258.12023249,0.00017123,2]
[351598430,1738653043185,-1685.53,0.00017123,2]
[351598431,1738653043195,-500.0,0.00017259,2]
[351598432,1738653043204,-500.0,0.0001726,2]
[351598433,1738653043214,-500.0,0.0001726,2]
[351598434,1738653043224,-711.07,0.0001726,2]
[351598435,1738653043234,-688.91,0.0001726,2]
[351598436,1738653043243,-500.0,0.0001726,2]
[351598437,1738653043253,-500.0,0.0001726,2]
[351598438,1738653043265,-500.0,0.0001726,2]
[351598439,1738653043274,-500.0,0.0001726,2]
[351598440,1738653043283,-1742.02,0.0001726,2]
[351598441,1738653043293,-585.01,0.0001726,2]
[351598442,1738653043302,-500.0,0.0001726,2]
[351598443,1738653043312,-650.59,0.0001726,2]
[351598444,1738653043321,-500.0,0.0001726,2]
[351598445,1738653043331,-3472.72,0.0001726,2]
[351598446,1738653043340,-558.80785315,0.0001726,2]
[351598447,1738653043350,-2545.92,0.0001726,2]
[351598448,1738653043360,-1100.22,0.0001726,2]
[351598449,1738653043370,-500.0,0.0001726,2]
[351598450,1738653043380,-696.57,0.0001726,2]
[351598451,1738653043389,-840.9,0.0001726,2]
[351598452,1738653043399,-1701.05,0.0001726,2]
[351598453,1738653043409,-666.96,0.0001726,2]
[351598454,1738653043419,-6091.39,0.0001726,2]
[351598455,1738653043429,-2741.31,0.0001726,2]
[351598456,1738653043438,-1024.87,0.0001726,2]
[351598457,1738653043447,-847.7,0.0001726,2]
[351598458,1738653043457,-16099.78,0.0001726,2]
[351598459,1738653043466,-500.0,0.0001726,2]
[351598460,1738653043476,-559.49,0.0001726,2]
[351598461,1738653043486,-953.65,0.0001726,2]
[351598462,1738653043495,-621.14,0.0001726,2]
[351598463,1738653043505,-565.43,0.0001726,2]
[351598464,1738653043520,-775.64,0.0001726,2]
[351598465,1738653043529,-500.0,0.0001726,2]
[351598466,1738653043539,-1135.73,0.0001726,2]
[351598467,1738653043550,-500.0,0.0001726,2]
[351598468,1738653043560,-1679.45,0.0001726,2]
[351598469,1738653043570,-500.0,0.0001726,2]
[351598470,1738653043579,-2063.87,0.0001726,2]
[351598471,1738653043590,-1090.8,0.0001726,2]
[351598472,1738653043600,-1175.84,0.0001726,2]
[351598473,1738653043609,-5316.78,0.0001726,2]
[351598474,1738653043619,-1053.58,0.0001726,2]
[351598475,1738653043628,-788.04,0.0001726,2]
[351598476,1738653043638,-500.0,0.0001726,2]
[351598477,1738653043647,-500.0,0.0001726,2]
[351598478,1738653043656,-999.29,0.0001726,2]
[351598479,1738653043666,-833.12,0.0001726,2]
[351598480,1738653043676,-1978.31,0.0001726,2]
[351598481,1738653043685,-1141.9,0.0001726,2]
[351598482,1738653043695,-500.0,0.0001726,2]
[351598483,1738653043705,-868.99,0.0001726,2]
[351598484,1738653043715,-5462.88,0.0001726,2]
[351598485,1738653043724,-584.0,0.0001727,2]
[351598486,1738653043733,-1394.43365856,0.00017342,2]
[351598487,1738653043743,-214.25987774,0.00017375,2]
[351598488,1738653043753,-500.0,0.00017396,2]
[351598489,1738653043765,-500.0,0.00017397,2]
[351598490,1738653043775,-223.82304717,0.00017397,2]
[351598491,1738653043784,-711.07,0.00017397,2]
[351598492,1738653043794,-500.0,0.00017397,2]
[351598493,1738653043803,-688.91,0.00017397,2]
[351598494,1738653043813,-500.0,0.00017397,2]
[351598495,1738653043823,-500.0,0.00017397,2]
[351598496,1738653043832,-500.0,0.00017397,2]
[351598497,1738653043842,-1742.02,0.00017397,2]
[351598498,1738653043851,-585.01,0.00017397,2]
[351598499,1738653043860,-514.86320597,0.00017397,2]
[351598500,1738653043870,-650.59,0.00017397,2]
[351598502,1738653043879,-500.0,0.00017397,2]
[351598504,1738653043889,-3472.72,0.00017397,2]
[351598506,1738653043898,-2545.92,0.00017397,2]
[351598508,1738653043907,-1100.22,0.00017397,2]
[351598510,1738653043917,-500.0,0.00017397,2]
[351598512,1738653043927,-696.57,0.00017397,2]
[351598514,1738653043936,-840.9,0.00017397,2]
[351598516,1738653043945,-1701.05,0.00017397,2]
[351598518,1738653043954,-666.96,0.00017397,2]
[351598520,1738653043963,-6091.39,0.00017397,2]
[351598521,1738653043972,-2741.31,0.00017397,2]
[351598524,1738653043981,-1024.87,0.00017397,2]
[351598526,1738653043991,-847.7,0.00017397,2]
[351598528,1738653044000,-16099.78,0.00017397,2]
[351598530,1738653044009,-500.0,0.00017397,2]
[351598532,1738653044018,-559.49,0.00017397,2]
[351598534,1738653044028,-953.65,0.00017397,2]
[351598535,1738653044037,-621.14,0.00017397,2]
[351598536,1738653044047,-565.43,0.00017397,2]
[351598537,1738653044056,-775.64,0.00017397,2]
[351598539,1738653044066,-500.0,0.00017397,2]
[351598541,1738653044076,-1135.73,0.00017397,2]
[351598543,1738653044085,-500.0,0.00017397,2]
[351598545,1738653044095,-1679.45,0.00017397,2]
[351598547,1738653044104,-500.0,0.00017397,2]
[351598549,1738653044114,-2063.87,0.00017397,2]
[351598550,1738653044123,-1090.8,0.00017397,2]
[351598552,1738653044132,-1175.84,0.00017397,2]
[351598555,1738653044142,-5316.78,0.00017397,2]
[351598556,1738653044151,-1053.58,0.00017397,2]
[351598558,1738653044159,-788.04,0.00017397,2]
[351598560,1738653044168,-500.0,0.00017397,2]
[351598561,1738653044177,-500.0,0.00017397,2]
[351598562,1738653044187,-999.29,0.00017397,2]
[351598563,1738653044196,-833.12,0.00017397,2]
[351598564,1738653044205,-1978.31,0.00017397,2]
[351598565,1738653044215,-1141.9,0.00017397,2]
[351598566,1738653044224,-500.0,0.00017397,2]